[Event "Hungarian Youth-ch I 2024"]
[Site "Szolnok"]
[Date "2024.04.05"]
[Round "7.3"]
[White "Frank, Balint"]
[Black "Fule, Simon"]
[Result "0-1"]
[ECO "E62"]
[WhiteElo "1939"]
[BlackElo "2262"]
[Annotator "RC"]
[PlyCount "54"]
[EventDate "2024.03.31"]
[EventType "swiss"]
[EventCountry "HUN"]
[SourceTitle "playchess.com"]
[Source "ChessBase"]
[SourceQuality "1"]
[TimeControl "5400+30"]

1. d4 {[%emt 0:00:09]} Nf6 {[%emt 0:02:02]} 2. c4 {[%emt 0:00:50]} g6 {[%emt 0:00:09]} 3. g3 {[%emt 0:00:06]} Bg7 {[%emt 0:00:06]} 4. Bg2 {[%emt 0:00:04]} O-O {[%emt 0:00:14]} 5. Nc3 {[%emt 0:00:04]} d6 {[%emt 0:00:20]} 6. Nf3 {[%emt 0:00:34]} Nc6 {[%emt 0:00:14]} 7. O-O {[%emt 0:00:06]} e5 {[%emt 0:00:13]} 8. dxe5 {[%emt 0:01:03]} dxe5 {[%emt 0:00:05]} 9. Bg5 {[%emt 0:00:10]} Be6 {[%emt 0:00:13]} 10. Nd2 {[%emt 0:00:05]} Qb8 {[%emt 0:00:55]} 11. Qa4 {[%emt 0:01:37]} Nd7 {[%emt 0:01:00]} 12. Bxc6 {[%emt 0:14:10]} bxc6 {[%emt 0:00:08]} 13. Qxc6 {[%emt 0:00:08]} Qxb2 {[%emt 0:00:32]} 14. Nd5 {[%emt 0:00:14]} e4 {[%emt 0:00:24]} 15. Rab1 {[%emt 0:23:02]} Qxa2 {[%emt 0:01:24]} 16. Rb7 {[%emt 0:00:05]} Ne5 {[%emt 0:58:25]} 17. Qc5 {[%emt 0:07:11]} Bxd5 {[%emt 0:10:32]} 18. cxd5 {[%emt 0:24:52]} h6 {[%emt 0:09:08]} 19. Be3 {[%emt 0:00:06]} Rfd8 {[%emt 0:02:05]} 20. Qxc7 {[%emt 0:16:25]} Qxd5 {[%emt 0:01:44]} 21. Rxa7 {[%emt 0:01:36]} Rxa7 {[%emt 0:04:30]} 22. Qxa7 {[%emt 0:00:09]} Ng4 {[%emt 0:00:07]} 23. Rd1 {[%emt 0:05:44]} Nxe3 {[%emt 0:05:10]} 24. Qxe3 {[%emt 0:00:32]} Qa2 {[%emt 0:00:08]} 25. Kf1 {[%emt 0:02:07]} Qc2 {[%emt 0:00:22]} 26. Ke1 {[%emt 0:01:49]} Rxd2 {[%emt 0:01:33]} 27. Rxd2 {[%emt 0:00:27]} Qc1+ {[%emt 0:00:04]} 0-1

[Event "Hungarian Youth-ch I 2024"]
[Site "Szolnok"]
[Date "2024.04.05"]
[Round "7.4"]
[White "Bekesi, Aron"]
[Black "Jankovics, Emod"]
[Result "1/2-1/2"]
[ECO "B35"]
[WhiteElo "1783"]
[BlackElo "1699"]
[Annotator "NA RC"]
[PlyCount "45"]
[EventDate "2024.03.31"]
[EventType "swiss"]
[EventCountry "HUN"]
[SourceTitle "playchess.com"]
[Source "ChessBase"]
[SourceQuality "1"]
[TimeControl "5400+30"]

1. e4 {[%emt 0:06:14]} c5 {[%emt 0:00:02]} 2. Nf3 {[%emt 0:00:14]} Nc6 {[%emt 0:00:05]} 3. d4 {[%emt 0:00:06]} cxd4 {[%emt 0:00:03]} 4. Nxd4 {[%emt 0:00:09]} g6 {[%emt 0:00:04]} 5. Nc3 {[%emt 0:00:11]} Bg7 {[%emt 0:00:09]} 6. Be3 {[%emt 0:00:10]} Nf6 {[%emt 0:00:11]} 7. Bc4 {[%emt 0:00:36]} Qa5 {[%emt 0:04:49]} 8. O-O {[%emt 0:15:37]} Qb4 {[%emt 0:01:58]} 9. Nxc6 {[%emt 0:02:05]} dxc6 {[%emt 0:00:38]} 10. Bb3 {[%emt 0:22:32]} Nxe4 {[%emt 0:05:09]} 11. Nxe4 {[%emt 0:01:11]} Qxe4 {[%emt 0:00:13]} 12. Re1 {[%emt 0:01:49]} Qf5 {[%emt 0:15:14]} 13. Bd4 {[%emt 0:07:16]} e5 {[%emt 0:38:14]} 14. Bc5 {[%emt 0:08:10]} Be6 {[%emt 0:07:30]} 15. Qd6 {[%emt 0:09:04]} Bf8 {[%emt 0:06:57]} 16. Qxe5 {[%emt 0:01:07]} Qxe5 {[%emt 0:00:39]} 17. Rxe5 {[%emt 0:00:02]} Bxc5 {[%emt 0:00:35]} 18. Rxc5 {[%emt 0:01:25]} Bxb3 {[%emt 0:01:04]} 19. axb3 {[%emt 0:00:18]} f6 {[%emt 0:01:02]} 20. f4 {[%emt 0:02:39]} Kf7 {[%emt 0:00:29]} 21. Kf2 {[%emt 0:00:31]} Rhe8 {[%emt 0:00:10]} 22. Rd1 {[%emt 0:01:00]} Rad8 {[%emt 0:00:35]} 23. Rxd8 {[%emt 0:00:34]} 1/2-1/2

[Event "Hungarian Youth-ch I 2024"]
[Site "Szolnok"]
[Date "2024.04.05"]
[Round "7.5"]
[White "Barna, Peter"]
[Black "Gulacsi, Donat Ferenc"]
[Result "0-1"]
[ECO "B12"]
[WhiteElo "1702"]
[BlackElo "1912"]
[Annotator "RC"]
[PlyCount "76"]
[EventDate "2024.03.31"]
[EventType "swiss"]
[EventCountry "HUN"]
[SourceTitle "playchess.com"]
[Source "ChessBase"]
[SourceQuality "1"]
[TimeControl "5400+30"]

1. e4 {[%emt 0:00:01]} c6 {[%emt 0:02:47]} 2. d4 {[%emt 0:00:04]} d5 {[%emt 0:00:07]} 3. e5 {[%emt 0:00:04]} Bf5 {[%emt 0:00:08]} 4. h4 {[%emt 0:00:05]} h6 {[%emt 0:03:20]} 5. g4 {[%emt 0:00:12]} Be4 {[%emt 0:00:55]} 6. f3 {[%emt 0:00:04]} Bh7 {[%emt 0:01:02]} 7. e6 {[%emt 0:00:04]} fxe6 {[%emt 0:14:33]} 8. Bd3 {[%emt 0:00:15]} g6 {[%emt 0:38:03]} 9. h5 {[%emt 0:11:55]} g5 {[%emt 0:02:42]} 10. Bxh7 {[%emt 0:00:07]} Rxh7 {[%emt 0:00:03]} 11. Qd3 {[%emt 0:00:06]} Rf7 {[%emt 0:03:24]} 12. Qg6 {[%emt 0:00:11]} Bg7 {[%emt 0:10:16]} 13. Nh3 {[%emt 0:14:16]} Nd7 {[%emt 0:04:47]} 14. Qxe6 {[%emt 0:03:14]} Bxd4 {[%emt 0:12:55]} 15. c3 {[%emt 0:35:01]} Be5 {[%emt 0:01:16]} 16. Kd1 {[%emt 0:05:03]} Qc7 {[%emt 0:00:44]} 17. Re1 {[%emt 0:02:04]} Bf6 {[%emt 0:01:21]} 18. f4 {[%emt 0:03:02]} Nf8 {[%emt 0:00:20]} 19. Qe3 {[%emt 0:04:26]} d4 {[%emt 0:00:31]} 20. Qe4 {[%emt 0:02:46]} dxc3 {[%emt 0:00:16]} 21. Nxc3 {[%emt 0:00:20]} O-O-O+ {[%emt 0:00:50]} 22. Kc2 {[%emt 0:00:35]} Rd4 {[%emt 0:00:34]} 23. Qf5+ {[%emt 0:03:50]} e6 {[%emt 0:00:17]} 24. Qc5 {[%emt 0:01:25]} Nd7 {[%emt 0:00:22]} 25. Qxa7 {[%emt 0:01:07]} Nb6 {[%emt 0:00:47]} 26. Rxe6 {[%emt 0:01:04]} Re7 {[%emt 0:00:29]} 27. Rxe7 {[%emt 0:01:03]} Nxe7 {[%emt 0:00:07]} 28. Be3 {[%emt 0:00:51]} Rb4 {[%emt 0:00:55]} 29. Bxb6 {[%emt 0:02:03]} Rxb6 {[%emt 0:00:22]} 30. Qa8+ {[%emt 0:00:31]} Kd7 {[%emt 0:00:34]} 31. Rd1+ {[%emt 0:01:07]} Nd5 {[%emt 0:00:07]} 32. Na4 {[%emt 0:02:51]} Rb4 {[%emt 0:00:56]} 33. Nc5+ {[%emt 0:03:14]} Kd6 {[%emt 0:00:14]} 34. Nb3 {[%emt 0:02:39]} Qe7 {[%emt 0:00:08]} 35. Qb8+ {[%emt 0:00:22]} Kd7 {[%emt 0:00:08]} 36. fxg5 {[%emt 0:01:32]} Qe2+ {[%emt 0:00:40]} 37. Rd2 {[%emt 0:00:53]} Rc4+ {[%emt 0:00:13]} 38. Kb1 {[%emt 0:00:31]} Qe1+ {[%emt 0:00:19]} 0-1

[Event "Hungarian Youth-ch I 2024"]
[Site "Szolnok"]
[Date "2024.04.05"]
[Round "7.6"]
[White "Csernyik, Mark"]
[Black "Turcsanyi, Vince Gergo"]
[Result "1/2-1/2"]
[ECO "B13"]
[WhiteElo "2016"]
[BlackElo "2247"]
[Annotator "RC"]
[PlyCount "89"]
[EventDate "2024.03.31"]
[EventType "swiss"]
[EventCountry "HUN"]
[SourceTitle "playchess.com"]
[Source "ChessBase"]
[SourceQuality "1"]
[TimeControl "5400+30"]

1. e4 {[%emt 0:00:03]} c6 {[%emt 0:00:26]} 2. d4 {[%emt 0:00:06]} d5 {[%emt 0:00:07]} 3. exd5 {[%emt 0:00:06]} cxd5 {[%emt 0:00:06]} 4. Nf3 {[%emt 0:00:04]} Nc6 {[%emt 0:00:45]} 5. Bb5 {[%emt 0:01:03]} Bd7 {[%emt 0:07:32]} 6. O-O {[%emt 0:02:04]} a6 {[%emt 0:03:26]} 7. Bd3 {[%emt 0:03:25]} Bg4 {[%emt 0:07:02]} 8. c3 {[%emt 0:04:46]} e6 {[%emt 0:00:47]} 9. h3 {[%emt 0:01:51]} Bh5 {[%emt 0:00:57]} 10. Nbd2 {[%emt 0:00:44]} Bd6 {[%emt 0:01:24]} 11. Re1 {[%emt 0:10:50]} Nf6 {[%emt 0:01:40]} 12. Qc2 {[%emt 0:00:33]} O-O {[%emt 0:05:27]} 13. Ne5 {[%emt 0:02:12]} Rc8 {[%emt 0:02:21]} 14. Nxc6 {[%emt 0:02:53]} Rxc6 {[%emt 0:00:16]} 15. Nf1 {[%emt 0:00:51]} b5 {[%emt 0:02:43]} 16. a3 {[%emt 0:02:15]} Bg6 {[%emt 0:04:03]} 17. Bg5 {[%emt 0:06:12]} a5 {[%emt 0:05:56]} 18. Bxg6 {[%emt 0:05:02]} hxg6 {[%emt 0:00:09]} 19. Ne3 {[%emt 0:00:13]} Qb6 {[%emt 0:08:17]} 20. Bxf6 {[%emt 0:13:58]} gxf6 {[%emt 0:00:08]} 21. Qd2 {[%emt 0:00:20]} Kg7 {[%emt 0:11:55]} 22. g3 {[%emt 0:06:49]} b4 {[%emt 0:07:19]} 23. axb4 {[%emt 0:00:58]} axb4 {[%emt 0:01:18]} 24. h4 {[%emt 0:02:21]} f5 {[%emt 0:06:01]} 25. h5 {[%emt 0:02:25]} bxc3 {[%emt 0:04:23]} 26. bxc3 {[%emt 0:00:44]} Qc7 {[%emt 0:00:19]} 27. hxg6 {[%emt 0:02:21]} fxg6 {[%emt 0:00:16]} 28. Ng2 {[%emt 0:05:11]} Re8 {[%emt 0:02:05]} 29. Rac1 {[%emt 0:01:51]} Be7 {[%emt 0:04:30]} 30. Qd3 {[%emt 0:01:42]} Bg5 {[%emt 0:01:01]} 31. f4 {[%emt 0:02:11]} Bf6 {[%emt 0:00:13]} 32. Rc2 {[%emt 0:01:54]} Rc8 {[%emt 0:00:56]} 33. Rec1 {[%emt 0:00:41]} Be7 {[%emt 0:02:34]} 34. Ne3 {[%emt 0:02:04]} Ba3 {[%emt 0:02:03]} 35. Ra1 {[%emt 0:00:16]} Bb4 {[%emt 0:03:17]} 36. cxb4 {[%emt 0:00:29]} Rxc2 {[%emt 0:00:04]} 37. Qxc2 {[%emt 0:00:29]} Qxc2 {[%emt 0:00:03]} 38. Nxc2 {[%emt 0:00:08]} Rxc2 {[%emt 0:00:04]} 39. Rb1 {[%emt 0:02:38]} Kf7 {[%emt 0:01:15]} 40. b5 {[%emt 0:00:57]} Rc7 {[%emt 0:00:24]} 41. Kf2 {[%emt 0:02:55]} Ke7 {[%emt 0:00:36]} 42. Ke3 {[%emt 0:02:04]} Kd7 {[%emt 0:00:35]} 43. Kd3 {[%emt 0:00:44]} Kc8 {[%emt 0:01:56]} 44. Re1 {[%emt 0:00:21]} Kd7 {[%emt 0:00:38]} 45. Rb1 {[%emt 0:01:03]} 1/2-1/2

[Event "Hungarian Youth-ch I 2024"]
[Site "Szolnok"]
[Date "2024.04.05"]
[Round "7.7"]
[White "Herczeg, Marcell"]
[Black "Kolimar, Kristof Pal"]
[Result "0-1"]
[ECO "B90"]
[WhiteElo "2107"]
[BlackElo "2282"]
[Annotator "RC"]
[PlyCount "92"]
[EventDate "2024.03.31"]
[EventType "swiss"]
[EventCountry "HUN"]
[SourceTitle "playchess.com"]
[Source "ChessBase"]
[SourceQuality "1"]
[TimeControl "5400+30"]

1. e4 {[%emt 0:00:05]} c5 {[%emt 0:00:08]} 2. Nf3 {[%emt 0:00:14]} d6 {[%emt 0:00:07]} 3. d4 {[%emt 0:00:26]} cxd4 {[%emt 0:00:05]} 4. Nxd4 {[%emt 0:00:06]} Nf6 {[%emt 0:00:06]} 5. Nc3 {[%emt 0:00:43]} a6 {[%emt 0:00:04]} 6. h3 {[%emt 0:00:04]} e6 {[%emt 0:00:04]} 7. g4 {[%emt 0:01:12]} Nfd7 {[%emt 0:00:04]} 8. h4 {[%emt 0:03:43]} b5 {[%emt 0:01:29]} 9. a3 {[%emt 0:00:45]} Bb7 {[%emt 0:00:34]} 10. Be3 {[%emt 0:01:33]} Be7 {[%emt 0:00:25]} 11. Qd2 {[%emt 0:01:55]} Nc6 {[%emt 0:01:39]} 12. g5 {[%emt 0:11:52]} O-O {[%emt 0:01:11]} 13. Rg1 {[%emt 0:02:44]} Nc5 {[%emt 0:07:42]} 14. f3 {[%emt 0:09:31]} Rb8 {[%emt 0:08:13]} 15. h5 {[%emt 0:09:01]} b4 {[%emt 0:15:09]} 16. axb4 {[%emt 0:09:58]} Nxb4 {[%emt 0:00:07]} 17. g6 {[%emt 0:01:41]} Bh4+ {[%emt 0:05:44]} 18. Kd1 {[%emt 0:01:14]} Bf6 {[%emt 0:02:42]} 19. Bh3 {[%emt 0:05:38]} Qe7 {[%emt 0:03:53]} 20. Nce2 {[%emt 0:12:54]} Nc6 {[%emt 0:11:35]} 21. gxf7+ {[%emt 0:03:39]} Rxf7 {[%emt 0:00:36]} 22. b4 {[%emt 0:00:34]} Nxd4 {[%emt 0:14:02]} 23. Nxd4 {[%emt 0:01:22]} Bxd4 {[%emt 0:00:51]} 24. Bxd4 {[%emt 0:02:58]} e5 {[%emt 0:00:36]} 25. bxc5 {[%emt 0:07:03]} exd4 {[%emt 0:06:22]} 26. Bf5 {[%emt 0:01:16]} dxc5 {[%emt 0:03:26]} 27. Qh6 {[%emt 0:03:16]} Rxf5 {[%emt 0:01:14]} 28. exf5 {[%emt 0:00:07]} Bxf3+ {[%emt 0:01:31]} 29. Kc1 {[%emt 0:03:36]} Qb7 {[%emt 0:03:45]} 30. Qe6+ {[%emt 0:03:08]} Kh8 {[%emt 0:00:27]} 31. Qc4 {[%emt 0:00:40]} Qc7 {[%emt 0:04:49]} 32. Qd3 {[%emt 0:00:25]} Bxh5 {[%emt 0:00:36]} 33. Rxa6 {[%emt 0:01:24]} Qf4+ {[%emt 0:01:09]} 34. Qd2 {[%emt 0:00:04]} Qxf5 {[%emt 0:00:36]} 35. Ra7 {[%emt 0:00:44]} Bg6 {[%emt 0:01:02]} 36. Ra6 {[%emt 0:01:03]} Re8 {[%emt 0:02:10]} 37. Qh2 {[%emt 0:00:45]} Kg8 {[%emt 0:00:42]} 38. Rd6 {[%emt 0:01:29]} Qf3 {[%emt 0:00:38]} 39. Ra6 {[%emt 0:00:34]} Qe3+ {[%emt 0:01:27]} 40. Kb1 {[%emt 0:00:24]} d3 {[%emt 0:01:16]} 41. Kb2 {[%emt 0:00:30]} Qd4+ {[%emt 0:00:22]} 42. Kc1 {[%emt 0:00:31]} d2+ {[%emt 0:00:28]} 43. Kd1 {[%emt 0:00:11]} Bh5+ {[%emt 0:00:11]} 44. Qxh5 {[%emt 0:00:24]} Qxg1+ {[%emt 0:00:02]} 45. Kxd2 {[%emt 0:00:12]} Qe3+ {[%emt 0:00:04]} 46. Kd1 {[%emt 0:00:06]} Qe1# {[%emt 0:00:01]} 0-1

[Event "Hungarian Youth-ch I 2024"]
[Site "Szolnok"]
[Date "2024.04.05"]
[Round "7.8"]
[White "Szegedy, Matyas"]
[Black "Panda, Barnabas"]
[Result "1/2-1/2"]
[ECO "B41"]
[WhiteElo "2177"]
[BlackElo "2066"]
[Annotator "RC"]
[PlyCount "80"]
[EventDate "2024.03.31"]
[EventType "swiss"]
[EventCountry "HUN"]
[SourceTitle "playchess.com"]
[Source "ChessBase"]
[SourceQuality "1"]
[TimeControl "5400+30"]

1. e4 {[%emt 0:00:10]} c5 {[%emt 0:00:12]} 2. Nf3 {[%emt 0:00:11]} e6 {[%emt 0:00:22]} 3. d4 {[%emt 0:01:18]} cxd4 {[%emt 0:00:18]} 4. Nxd4 {[%emt 0:00:09]} a6 {[%emt 0:00:10]} 5. c4 {[%emt 0:01:11]} Nf6 {[%emt 0:00:52]} 6. Nc3 {[%emt 0:00:16]} Bb4 {[%emt 0:00:33]} 7. Qd3 {[%emt 0:01:31]} d5 {[%emt 0:02:23]} 8. exd5 {[%emt 0:02:26]} exd5 {[%emt 0:00:13]} 9. Be2 {[%emt 0:00:54]} O-O {[%emt 0:07:50]} 10. O-O {[%emt 0:01:59]} Nc6 {[%emt 0:01:08]} 11. Nxc6 {[%emt 0:11:54]} bxc6 {[%emt 0:00:10]} 12. cxd5 {[%emt 0:00:20]} cxd5 {[%emt 0:02:31]} 13. Rd1 {[%emt 0:01:52]} Be6 {[%emt 0:08:44]} 14. Be3 {[%emt 0:06:10]} Qe7 {[%emt 0:10:44]} 15. Bd4 {[%emt 0:09:57]} Rfd8 {[%emt 0:08:30]} 16. Bf3 {[%emt 0:02:27]} Bc5 {[%emt 0:11:37]} 17. Na4 {[%emt 0:12:24]} Bxd4 {[%emt 0:04:29]} 18. Qxd4 {[%emt 0:00:08]} Rab8 {[%emt 0:02:46]} 19. Nc5 {[%emt 0:16:58]} Qd6 {[%emt 0:02:22]} 20. Rac1 {[%emt 0:01:18]} Bf5 {[%emt 0:04:57]} 21. b4 {[%emt 0:03:29]} Qb6 {[%emt 0:06:32]} 22. Qe5 {[%emt 0:12:58]} Bg4 {[%emt 0:07:41]} 23. Bxg4 {[%emt 0:03:10]} Nxg4 {[%emt 0:00:06]} 24. Qf5 {[%emt 0:00:36]} Nf6 {[%emt 0:00:43]} 25. h3 {[%emt 0:01:46]} a5 {[%emt 0:03:46]} 26. a3 {[%emt 0:00:44]} axb4 {[%emt 0:01:02]} 27. axb4 {[%emt 0:00:04]} Ra8 {[%emt 0:00:10]} 28. Rd4 {[%emt 0:01:04]} h6 {[%emt 0:02:19]} 29. Qd3 {[%emt 0:02:03]} Ra2 {[%emt 0:02:46]} 30. Rd1 {[%emt 0:04:11]} Re8 {[%emt 0:01:34]} 31. Rf4 {[%emt 0:01:13]} Qd6 {[%emt 0:02:41]} 32. Qf5 {[%emt 0:00:17]} Rae2 {[%emt 0:01:04]} 33. g3 {[%emt 0:00:49]} Re1+ {[%emt 0:01:52]} 34. Rxe1 {[%emt 0:00:04]} Rxe1+ {[%emt 0:00:05]} 35. Kg2 {[%emt 0:00:42]} d4 {[%emt 0:02:12]} 36. Qd3 {[%emt 0:00:50]} Qd5+ {[%emt 0:00:10]} 37. Qf3 {[%emt 0:00:04]} Qc4 {[%emt 0:00:50]} 38. Qd3 {[%emt 0:01:10]} Qxb4 {[%emt 0:00:52]} 39. Qxd4 {[%emt 0:00:18]} Qxd4 {[%emt 0:00:45]} 40. Rxd4 {[%emt 0:00:05]} h5 {[%emt 0:00:12]} 1/2-1/2

[Event "Hungarian Youth-ch I 2024"]
[Site "Szolnok"]
[Date "2024.04.05"]
[Round "7.9"]
[White "Gyorfi, Adam"]
[Black "Apro, Barnabas"]
[Result "1/2-1/2"]
[ECO "D38"]
[WhiteElo "2042"]
[BlackElo "2026"]
[Annotator "RC"]
[PlyCount "72"]
[EventDate "2024.03.31"]
[EventType "swiss"]
[EventCountry "HUN"]
[SourceTitle "playchess.com"]
[Source "ChessBase"]
[SourceQuality "1"]
[TimeControl "5400+30"]

1. d4 {[%emt 0:00:04]} d5 {[%emt 0:00:12]} 2. Nf3 {[%emt 0:00:07]} Nf6 {[%emt 0:00:13]} 3. c4 {[%emt 0:00:38]} e6 {[%emt 0:00:09]} 4. Nc3 {[%emt 0:00:08]} Bb4 {[%emt 0:00:18]} 5. cxd5 {[%emt 0:01:00]} exd5 {[%emt 0:00:09]} 6. Bg5 {[%emt 0:01:06]} h6 {[%emt 0:00:20]} 7. Bh4 {[%emt 0:00:49]} Bf5 {[%emt 0:00:21]} 8. e3 {[%emt 0:09:48]} Nbd7 {[%emt 0:05:06]} 9. Bd3 {[%emt 0:11:37]} Bxd3 {[%emt 0:06:59]} 10. Qxd3 {[%emt 0:00:45]} c6 {[%emt 0:00:12]} 11. O-O {[%emt 0:02:44]} O-O {[%emt 0:00:43]} 12. Nd2 {[%emt 0:05:16]} Re8 {[%emt 0:03:43]} 13. Rfe1 {[%emt 0:06:10]} Rc8 {[%emt 0:09:48]} 14. a3 {[%emt 0:08:26]} Be7 {[%emt 0:05:43]} 15. Rac1 {[%emt 0:07:52]} Qb6 {[%emt 0:11:59]} 16. b4 {[%emt 0:05:27]} a5 {[%emt 0:12:01]} 17. Na4 {[%emt 0:02:57]} Qa7 {[%emt 0:00:21]} 18. Nc5 {[%emt 0:04:01]} axb4 {[%emt 0:05:20]} 19. axb4 {[%emt 0:02:25]} b6 {[%emt 0:00:28]} 20. Ra1 {[%emt 0:02:10]} Nxc5 {[%emt 0:04:29]} 21. bxc5 {[%emt 0:01:02]} Qb7 {[%emt 0:00:10]} 22. cxb6 {[%emt 0:01:21]} Qxb6 {[%emt 0:00:51]} 23. Reb1 {[%emt 0:02:44]} Qc7 {[%emt 0:00:51]} 24. Bxf6 {[%emt 0:02:42]} Bxf6 {[%emt 0:00:10]} 25. Nb3 {[%emt 0:01:47]} Be7 {[%emt 0:05:28]} 26. g3 {[%emt 0:03:13]} Bd6 {[%emt 0:02:30]} 27. Rc1 {[%emt 0:02:07]} h5 {[%emt 0:03:43]} 28. Qf5 {[%emt 0:06:46]} g6 {[%emt 0:02:54]} 29. Qf3 {[%emt 0:01:00]} Kg7 {[%emt 0:01:15]} 30. Nc5 {[%emt 0:01:30]} h4 {[%emt 0:02:47]} 31. Kg2 {[%emt 0:01:52]} Rh8 {[%emt 0:01:26]} 32. Rab1 {[%emt 0:02:36]} Rb8 {[%emt 0:03:47]} 33. Rxb8 {[%emt 0:00:21]} Qxb8 {[%emt 0:00:07]} 34. Nd7 {[%emt 0:01:49]} Qd8 {[%emt 0:00:48]} 35. Ne5 {[%emt 0:00:27]} Bxe5 {[%emt 0:01:25]} 36. dxe5 {[%emt 0:00:01]} Qe7 {[%emt 0:00:11]} 1/2-1/2

[Event "Hungarian Youth-ch I 2024"]
[Site "Szolnok"]
[Date "2024.04.05"]
[Round "7.10"]
[White "Megyaszai, Balazs"]
[Black "Bodrogi, Bendeguz"]
[Result "1/2-1/2"]
[ECO "B12"]
[WhiteElo "2029"]
[BlackElo "2316"]
[Annotator "RC"]
[PlyCount "102"]
[EventDate "2024.03.31"]
[EventType "swiss"]
[EventCountry "HUN"]
[SourceTitle "playchess.com"]
[Source "ChessBase"]
[SourceQuality "1"]
[TimeControl "5400+30"]

1. e4 {[%emt 0:00:22]} c6 {[%emt 0:00:39]} 2. d4 {[%emt 0:00:25]} d5 {[%emt 0:00:15]} 3. e5 {[%emt 0:00:25]} Bf5 {[%emt 0:02:05]} 4. h4 {[%emt 0:00:21]} h5 {[%emt 0:00:17]} 5. Bd3 {[%emt 0:00:54]} Bxd3 {[%emt 0:00:08]} 6. Qxd3 {[%emt 0:00:15]} Qa5+ {[%emt 0:00:07]} 7. Nd2 {[%emt 0:00:31]} e6 {[%emt 0:00:18]} 8. Ngf3 {[%emt 0:00:26]} Nh6 {[%emt 0:00:44]} 9. O-O {[%emt 0:00:22]} Nf5 {[%emt 0:00:27]} 10. Nb3 {[%emt 0:00:29]} Qa6 {[%emt 0:00:38]} 11. Qd1 {[%emt 0:00:46]} Nd7 {[%emt 0:02:07]} 12. Bg5 {[%emt 0:01:44]} b6 {[%emt 0:00:15]} 13. Re1 {[%emt 0:06:29]} c5 {[%emt 0:20:35]} 14. c3 {[%emt 0:04:02]} Rc8 {[%emt 0:05:52]} 15. g3 {[%emt 0:13:38]} g6 {[%emt 0:22:43]} 16. Bf6 {[%emt 0:20:49]} Nxf6 {[%emt 0:15:26]} 17. exf6 {[%emt 0:04:32]} c4 {[%emt 0:01:17]} 18. Nbd2 {[%emt 0:02:10]} b5 {[%emt 0:03:26]} 19. a3 {[%emt 0:08:33]} Qb6 {[%emt 0:07:55]} 20. Qe2 {[%emt 0:01:44]} Bd6 {[%emt 0:06:38]} 21. Ne5 {[%emt 0:03:42]} Bxe5 {[%emt 0:01:42]} 22. Qxe5 {[%emt 0:00:54]} Qd6 {[%emt 0:01:39]} 23. Qe2 {[%emt 0:06:22]} Qd8 {[%emt 0:00:30]} 24. Qe5 {[%emt 0:01:13]} Qd6 {[%emt 0:00:02]} 25. Qe2 {[%emt 0:01:27]} Qd8 {[%emt 0:00:19]} 26. Qe5 {[%emt 0:01:28]} Nh6 {[%emt 0:02:05]} 27. a4 {[%emt 0:04:54]} Ng4 {[%emt 0:00:41]} 28. Qg5 {[%emt 0:01:12]} b4 {[%emt 0:00:18]} 29. cxb4 {[%emt 0:03:56]} Qxf6 {[%emt 0:00:02]} 30. Qxf6 {[%emt 0:01:08]} Nxf6 {[%emt 0:00:03]} 31. b5 {[%emt 0:00:19]} O-O {[%emt 0:00:44]} 32. Rec1 {[%emt 0:01:15]} a6 {[%emt 0:02:24]} 33. bxa6 {[%emt 0:01:24]} Rb8 {[%emt 0:02:14]} 34. a7 {[%emt 0:03:17]} Rb7 {[%emt 0:00:41]} 35. b3 {[%emt 0:00:40]} cxb3 {[%emt 0:00:04]} 36. Nxb3 {[%emt 0:00:29]} Ra8 {[%emt 0:00:33]} 37. Nc5 {[%emt 0:00:47]} Rbxa7 {[%emt 0:00:01]} 38. Rcb1 {[%emt 0:00:28]} Ne4 {[%emt 0:00:43]} 39. Nxe4 {[%emt 0:00:24]} dxe4 {[%emt 0:00:03]} 40. Rb4 {[%emt 0:00:10]} Kg7 {[%emt 0:00:36]} 41. Kf1 {[%emt 0:00:25]} f5 {[%emt 0:00:22]} 42. Ke2 {[%emt 0:00:38]} Kf6 {[%emt 0:00:08]} 43. Ke3 {[%emt 0:00:27]} Ra5 {[%emt 0:00:16]} 44. Rb6 {[%emt 0:02:16]} Rxa4 {[%emt 0:03:15]} 45. Rxa4 {[%emt 0:00:05]} Rxa4 {[%emt 0:00:02]} 46. d5 {[%emt 0:00:09]} Ra3+ {[%emt 0:00:03]} 47. Ke2 {[%emt 0:00:19]} Ra5 {[%emt 0:00:54]} 48. Rxe6+ {[%emt 0:00:15]} Kf7 {[%emt 0:00:02]} 49. Rd6 {[%emt 0:00:28]} Ra3 {[%emt 0:00:21]} 50. Rd7+ {[%emt 0:00:27]} Kf6 {[%emt 0:00:05]} 51. Rd6+ {[%emt 0:00:20]} Kf7 {[%emt 0:00:05]} 1/2-1/2